[Event "Queens Festival Final Team 2022"]
[Site "Tornelo"]
[Date "2022.06.26"]
[Round "4.5"]
[White "Krush, Irina"]
[Black "Song, Yuxin"]
[Result "1/2-1/2"]
[ECO "E32"]
[WhiteElo "2430"]
[BlackElo "2317"]
[Annotator "TA"]
[PlyCount "90"]
[EventDate "2022.06.24"]
[EventType "team-tourn"]
[EventCountry "NET"]
[SourceTitle "playchess.com"]
[Source "ChessBase"]
[SourceQuality "1"]
[WhiteTeam "United States"]
[BlackTeam "China"]
[WhiteTeamCountry "USA"]
[BlackTeamCountry "CHN"]
[TimeControl "180+2"]

{[%evp 16,90,16,0,1,0,0,7,7,0,34,16,39,43,41,36,39,39,85,87,90,89,111,92,130,97,132,87,176,172,166,167,199,129,123,122,118,133,185,157,250,252,262,254,339,340,477,466,463,426,588,588,530,577,550,529,1770,1734,1641,1493,1365,558,535,517,29982,29983,29984,29985,29985,29986,29986,0,0,0,29983,0,0]} 1. d4 {[%emt 0:00:02] Krasenkow,Michal} Nf6 {[%emt 0:00:04]} 2. c4 {[%emt 0:00:02]} e6 {[%emt 0:00:01]} 3. Nc3 {[%emt 0:00:02]} Bb4 {[%emt 0:00:01]} 4. Qc2 {[%emt 0:00:01]} O-O {[%emt 0:00:02]} 5. a3 {[%emt 0:00:02]} Bxc3+ {[%emt 0:00:01]} 6. Qxc3 {[%emt 0:00:01]} b6 {[%emt 0:00:01]} 7. Bg5 {[%emt 0:00:05]} Bb7 {[%emt 0:00:01]} 8. e3 {[%emt 0:00:02]} h6 {[%emt 0:00:02]} 9. Bh4 {[%emt 0:00:01]} d6 {[%emt 0:00:02] E32: Nimzo-Indian: Classical (4 Qc2): 4...0-0.} 10. Ne2 {[%emt 0:00:02]} Nbd7 {[%emt 0:00:01]} 11. Qc2 {[%emt 0:00:01]} c5 {[%emt 0:00:02]} 12. Rd1 {[%emt 0:00:02]} Rc8 {[%emt 0:00:08][%cal Ob6b5]} 13. Nc3 {[%emt 0:00:06]} Qe7 {[%emt 0:00:37]} 14. d5 {[%emt 0:00:26] [#]} a6 $146 {[%emt 0:00:21]} ({Predecessor:} 14... exd5 15. cxd5 a6 16. a4 c4 17. Rd4 Ne5 18. Qd1 Rc5 19. Be2 g5 20. Bg3 b5 21. axb5 axb5 {1-0 (76) Grischuk,A (2719)-Nakamura,H (2704) Dresden 2008 CBM 128 [Krasenkow,Michal]}) 15. a4 {[%emt 0:00:21]} Rb8 {[%emt 0:00:41]} 16. Be2 {[%emt 0:00:03]} exd5 {[%emt 0:00:03]} (16... b5 $1 $14 {is superior.}) 17. cxd5 $16 {[%emt 0:00:01]} Rfe8 {[%emt 0:00:17]} 18. O-O {[%emt 0:00:03]} Qe5 {[%emt 0:00:03]} 19. Bg3 {[%emt 0:00:18]} Qe7 {[%emt 0:00:01]} 20. h3 {[%emt 0:00:09] White is more active.} Ne5 {[%emt 0:00:02]} 21. Rfe1 {[%emt 0:00:09]} Qd7 {[%emt 0:00:06]} (21... g5 $16 {is a better defense.}) 22. f4 $36 {[%emt 0:00:09][%mdl 2048] White is in control.} Ng6 {[%emt 0:00:03]} 23. Bf3 {[%emt 0:00:01]} b5 {[%emt 0:00:06] [#]} 24. axb5 {[%emt 0:00:03]} (24. e4 $1 $18) 24... axb5 {[%emt 0:00:01]} 25. e4 {[%emt 0:00:01]} b4 {[%emt 0:00:05]} 26. Nb1 {[%emt 0:00:01][%cal Bc3b1,Bb1d2,Bd2c4][%mdl 32] And now e5 would win.} Rbd8 {[%emt 0:00:22]} (26... Qc7 $16) 27. Nd2 $18 {[%emt 0:00:03]} h5 {[%emt 0:00:11]} (27... Qc7 $16 {was called for.} 28. Ra1 Nd7) 28. Nc4 {[%emt 0:00:02]} h4 {[%emt 0:00:01]} 29. Bh2 {[%emt 0:00:01]} Qb5 {[%emt 0:00:07]} 30. b3 {[%emt 0:00:02]} Re7 {[%emt 0:00:05]} (30... Ba8 {was worth a try.} 31. Qf2 Qd7) 31. e5 {[%emt 0:00:22]} dxe5 {[%emt 0:00:03]} 32. fxe5 {[%emt 0:00:01]} ({Less strong is} 32. f5 Nf8 $18) 32... Nxd5 {[%emt 0:00:05]} 33. Nd6 {[%emt 0:00:01] Against Qe8} Rxd6 {[%emt 0:00:12]} 34. exd6 {[%emt 0:00:02]} Rxe1+ {[%emt 0:00:01]} 35. Rxe1 {[%emt 0:00:01] [#] aiming for Qc4.} Ndf4 {[%emt 0:00:04]} 36. Bxb7 {[%emt 0:00:15]} Nd3 {[%emt 0:00:01]} 37. Rd1 {[%emt 0:00:19]} c4 {[%emt 0:00:01]} 38. Rxd3 {[%emt 0:00:21]} cxd3 {[%emt 0:00:04]} 39. Qc8+ {[%emt 0:00:03]} Kh7 {[%emt 0:00:01]} (39... Nf8 $18 40. d7 Qxd7 41. Qxd7 Nxd7) 40. d7 {[%emt 0:00:10]} Qa5 {[%emt 0:00:05]} 41. d8=Q {[%emt 0:00:11]} Qa1+ {[%emt 0:00:01]} 42. Kf2 {[%emt 0:00:00]} Qb2+ {[%emt 0:00:01]} 43. Kg1 {[%emt 0:00:18]} Qa1+ {[%emt 0:00:02]} 44. Kf2 {[%emt 0:00:02]} Qb2+ $1 {[%emt 0:00:01]} 45. Kg1 $2 {[%emt 0:00:01]} (45. Ke3 {mates} Qf6 46. Qxf6 gxf6 47. Bd6 d2 48. Kxd2 Kh6 49. Qg8 Kg5 50. Qxf7) 45... Qa1+ {[%emt 0:00:01] Weighted Error Value: White=0.19 (very precise) /Black=0.42} 1/2-1/2

[Event "Queens Festival Final Team 2022"]
[Site "Tornelo"]
[Date "2022.06.26"]
[Round "4.5"]
[White "Hong, Xing"]
[Black "Bian, Erin"]
[Result "0-1"]
[ECO "C47"]
[WhiteElo "1999"]
[BlackElo "1811"]
[Annotator "NA RC"]
[PlyCount "114"]
[EventDate "2022.06.24"]
[EventType "team-tourn"]
[EventCountry "NET"]
[SourceTitle "playchess.com"]
[Source "ChessBase"]
[SourceQuality "1"]
[WhiteTeam "China"]
[BlackTeam "United States"]
[WhiteTeamCountry "CHN"]
[BlackTeamCountry "USA"]
[TimeControl "180+2"]

1. e4 {[%emt 0:00:02]} e5 {[%emt 0:00:04]} 2. Nc3 {[%emt 0:00:02]} Nf6 {[%emt 0:00:02]} 3. Nge2 {[%emt 0:00:02]} Nc6 {[%emt 0:00:04]} 4. d4 {[%emt 0:00:01]} exd4 {[%emt 0:00:03]} 5. Nxd4 {[%emt 0:00:01]} Bb4 {[%emt 0:00:01]} 6. Nxc6 {[%emt 0:00:01]} bxc6 {[%emt 0:00:03]} 7. Bd3 {[%emt 0:00:01]} d5 {[%emt 0:00:02]} 8. exd5 {[%emt 0:00:01]} O-O {[%emt 0:00:02]} 9. O-O {[%emt 0:00:01]} Bg4 {[%emt 0:00:08]} 10. f3 {[%emt 0:00:04]} Bh5 {[%emt 0:00:08]} 11. dxc6 {[%emt 0:00:01]} Qd4+ {[%emt 0:00:12]} 12. Kh1 {[%emt 0:00:03]} Bxc3 {[%emt 0:00:02]} 13. bxc3 {[%emt 0:00:02]} Qxc3 {[%emt 0:00:06]} 14. Rb1 {[%emt 0:00:02]} Qxc6 {[%emt 0:00:09]} 15. Bb2 {[%emt 0:00:06]} Bg6 {[%emt 0:00:05]} 16. Bxg6 {[%emt 0:00:15]} hxg6 {[%emt 0:00:02]} 17. Qd4 {[%emt 0:00:27]} Rfd8 {[%emt 0:00:10]} 18. Qc3 {[%emt 0:00:07]} Qxc3 {[%emt 0:00:04]} 19. Bxc3 {[%emt 0:00:01]} Nd5 {[%emt 0:00:02]} 20. Ba5 {[%emt 0:00:02]} Rab8 {[%emt 0:00:09]} 21. h3 {[%emt 0:00:08]} Nb6 {[%emt 0:00:09]} 22. Kh2 {[%emt 0:00:07]} c5 {[%emt 0:00:06]} 23. Rfe1 {[%emt 0:00:10]} Kf8 {[%emt 0:00:09]} 24. Re5 {[%emt 0:00:10]} Rdc8 {[%emt 0:00:09]} 25. Rb5 {[%emt 0:00:13]} Na4 {[%emt 0:00:28]} 26. Rxb8 {[%emt 0:00:32]} Rxb8 {[%emt 0:00:02]} 27. Bc7 {[%emt 0:00:03]} Rc8 {[%emt 0:00:04]} 28. Bd6+ {[%emt 0:00:01]} Kg8 {[%emt 0:00:02]} 29. Re7 {[%emt 0:00:01]} Rd8 {[%emt 0:00:09]} 30. Bf4 {[%emt 0:00:16]} Ra8 {[%emt 0:00:22]} 31. Rc7 {[%emt 0:00:05]} a5 {[%emt 0:00:09]} 32. Bd2 {[%emt 0:00:01]} f6 {[%emt 0:00:08]} 33. Kg3 {[%emt 0:00:02]} g5 {[%emt 0:00:03]} 34. Be3 {[%emt 0:00:05]} Nc3 {[%emt 0:00:06]} 35. Bxc5 {[%emt 0:00:06]} Nxa2 {[%emt 0:00:02]} 36. Ba3 {[%emt 0:00:08]} Nb4 {[%emt 0:00:02]} 37. Rb7 {[%emt 0:00:08]} Nxc2 {[%emt 0:00:03]} 38. Bb2 {[%emt 0:00:10]} Ne3 {[%emt 0:00:04]} 39. Bd4 {[%emt 0:00:04]} Nf5+ {[%emt 0:00:02]} 40. Kf2 {[%emt 0:00:04]} Nxd4 {[%emt 0:00:01]} 41. Rd7 {[%emt 0:00:01]} Ne6 {[%emt 0:00:03]} 42. Ke3 {[%emt 0:00:01]} a4 {[%emt 0:00:02]} 43. Rd2 {[%emt 0:00:01]} a3 {[%emt 0:00:01]} 44. Ra2 {[%emt 0:00:01]} Kf7 {[%emt 0:00:02]} 45. Ke4 {[%emt 0:00:01]} Nc5+ {[%emt 0:00:03]} 46. Kd5 {[%emt 0:00:02]} Nd3 {[%emt 0:00:02]} 47. Kd4 {[%emt 0:00:02]} Nb4 {[%emt 0:00:02]} 48. Rd2 {[%emt 0:00:03]} a2 {[%emt 0:00:02]} 49. Rxa2 {[%emt 0:00:02]} Rxa2 {[%emt 0:00:02]} 50. Ke4 {[%emt 0:00:01]} Rxg2 {[%emt 0:00:02]} 51. Ke3 {[%emt 0:00:01]} Rg3 {[%emt 0:00:01]} 52. Kf2 {[%emt 0:00:02]} Rxh3 {[%emt 0:00:02]} 53. Kg2 {[%emt 0:00:01]} Rh8 {[%emt 0:00:00]} 54. Kg3 {[%emt 0:00:02]} f5 {[%emt 0:00:01]} 55. f4 {[%emt 0:00:01]} g4 {[%emt 0:00:02]} 56. Kg2 {[%emt 0:00:01]} Rh3 {[%emt 0:00:01]} 57. Kf2 {[%emt 0:00:01]} Ra3 {[%emt 0:00:02]} 0-1

[Event "Queens Festival Final Team 2022"]
[Site "Tornelo"]
[Date "2022.06.26"]
[Round "4.5"]
[White "Yellamraju, Aparna"]
[Black "Cui, Wen"]
[Result "1-0"]
[ECO "E01"]
[WhiteElo "1720"]
[BlackElo "1718"]
[Annotator "NA RC"]
[PlyCount "69"]
[EventDate "2022.06.24"]
[EventType "team-tourn"]
[EventCountry "NET"]
[SourceTitle "playchess.com"]
[Source "ChessBase"]
[SourceQuality "1"]
[WhiteTeam "United States"]
[BlackTeam "China"]
[WhiteTeamCountry "USA"]
[BlackTeamCountry "CHN"]
[TimeControl "180+2"]

1. d4 {[%emt 0:00:02]} d5 {[%emt 0:00:04]} 2. c4 {[%emt 0:00:02]} e6 {[%emt 0:00:02]} 3. Nf3 {[%emt 0:00:04]} Nf6 {[%emt 0:00:02]} 4. g3 {[%emt 0:00:01]} c6 {[%emt 0:00:03]} 5. Bg2 {[%emt 0:00:02]} Bd6 {[%emt 0:00:02]} 6. O-O {[%emt 0:00:02]} O-O {[%emt 0:00:01]} 7. Qc2 {[%emt 0:00:04]} Nbd7 {[%emt 0:00:03]} 8. Nbd2 {[%emt 0:00:02]} b6 {[%emt 0:00:09]} 9. e4 {[%emt 0:00:05]} dxe4 {[%emt 0:00:03]} 10. Nxe4 {[%emt 0:00:02]} Nxe4 {[%emt 0:00:02]} 11. Qxe4 {[%emt 0:00:03]} Bb7 {[%emt 0:00:02]} 12. Qe2 {[%emt 0:00:03]} c5 {[%emt 0:00:10]} 13. Qc2 {[%emt 0:00:22]} Qc7 {[%emt 0:00:22]} 14. Ng5 {[%emt 0:00:16]} Nf6 {[%emt 0:00:03]} 15. Ne4 {[%emt 0:00:17]} Nxe4 {[%emt 0:00:25]} 16. Bxe4 {[%emt 0:00:02]} Bxe4 {[%emt 0:00:02]} 17. Qxe4 {[%emt 0:00:02]} cxd4 {[%emt 0:00:07]} 18. Qxd4 {[%emt 0:00:02]} Bc5 {[%emt 0:00:02]} 19. Qg4 {[%emt 0:00:05]} Qe5 {[%emt 0:00:15]} 20. Rb1 {[%emt 0:00:18]} a5 {[%emt 0:00:25]} 21. b3 {[%emt 0:00:02]} Rfd8 {[%emt 0:00:16]} 22. Bb2 {[%emt 0:00:05]} Bd4 {[%emt 0:00:02]} 23. Bxd4 {[%emt 0:00:05]} Rxd4 {[%emt 0:00:02]} 24. Qf3 {[%emt 0:00:05]} Rad8 {[%emt 0:00:02]} 25. Rbd1 {[%emt 0:00:10]} Qd6 {[%emt 0:00:09]} 26. Rxd4 {[%emt 0:00:06]} Qxd4 {[%emt 0:00:01]} 27. Re1 {[%emt 0:00:04]} h6 {[%emt 0:00:04]} 28. Re2 {[%emt 0:00:03]} Qd1+ {[%emt 0:00:17]} 29. Kg2 {[%emt 0:00:02]} Qc1 {[%emt 0:00:07]} 30. Re3 {[%emt 0:00:36]} Rd1 {[%emt 0:00:06]} 31. Qa8+ {[%emt 0:00:03]} Kh7 {[%emt 0:00:03]} 32. Qe4+ {[%emt 0:00:02]} g6 {[%emt 0:00:11]} 33. Rf3 {[%emt 0:00:24]} Rg1+ {[%emt 0:00:04]} 34. Kh3 {[%emt 0:00:01]} Qf1+ {[%emt 0:00:15]} 35. Kh4 {[%emt 0:00:08]} 1-0

[Event "Queens Festival Final Team 2022"]
[Site "Tornelo"]
[Date "2022.06.26"]
[Round "4.6"]
[White "Alboredo, Julia"]
[Black "Perez Rodriguez, Jennifer"]
[Result "1-0"]
[ECO "C54"]
[WhiteElo "2252"]
[BlackElo "2251"]
[Annotator "TA"]
[PlyCount "43"]
[EventDate "2022.06.24"]
[EventType "team-tourn"]
[EventCountry "NET"]
[SourceTitle "playchess.com"]
[Source "ChessBase"]
[SourceQuality "1"]
[WhiteTeam "Brazil"]
[BlackTeam "Paraguay"]
[WhiteTeamCountry "BRA"]
[BlackTeamCountry "PAR"]
[TimeControl "180+2"]

{[%evp 11,43,0,31,20,11,11,14,12,19,0,1,-5,93,74,250,236,248,257,234,251,251,243,231,231,231,226,233,229,368,350,395,389,1107,1104]} 1. e4 {[%emt 0:00:02]} e5 {[%emt 0:00:05]} 2. Nf3 {[%emt 0:00:03]} Nc6 {[%emt 0:00:01]} 3. d4 {[%emt 0:00:01]} exd4 {[%emt 0:00:03]} 4. Bc4 {[%emt 0:00:01]} Bc5 {[%emt 0:00:02]} 5. c3 {[%emt 0:00:03]} Nf6 {[%emt 0:00:09]} 6. e5 {[%emt 0:00:03]} Ne4 {[%emt 0:00:17]} (6... d5 $5 {[%cal Rd5c4]} 7. Bb5 (7. exf6 dxc4 8. fxg7 Rg8 $15) 7... Ne4 $11) 7. O-O {[%emt 0:00:19] Hoping for Qe2. C54: Giuoco Piano: 4 c3 Nf6, main lines with 5 d4 and 5 d3.} (7. Bd5 $5 {[%cal Rd5e4]} Nxf2 8. Kxf2 $16) 7... d5 {[%emt 0:00:22]} 8. exd6 $1 {[%emt 0:00:48] Black must now prevent Re1.} O-O {[%emt 0:00:50]} 9. dxc7 {[%emt 0:00:05] The position is equal.} Qxc7 {[%emt 0:00:07] [#]} 10. Bd3 $146 {[%emt 0:00:04]} ({Predecessor:} 10. cxd4 Nxd4 11. Nxd4 Rd8 12. Nb5 Qb6 13. Qf3 Nxf2 14. Rxf2 Bxf2+ 15. Kh1 Be6 16. Bxe6 Qxe6 {1-0 (59) Baisynov,I (1986)-Ismailov,U Cholpon Ata 2016}) 10... Re8 {[%emt 0:00:29]} 11. Qc2 {[%emt 0:00:16]} f5 {[%emt 0:00:16]} (11... Bf5 $11 12. Nbd2 Nxd2 13. Bxd2 Bxd3 14. Qxd3 Qd6) 12. cxd4 $16 {[%emt 0:00:07]} Nb4 $2 {[%emt 0:00:06]} (12... Bb6 $16) 13. Qb3+ $18 {[%emt 0:00:04]} Be6 {[%emt 0:00:03]} 14. Bc4 {[%emt 0:00:02]} Bxc4 {[%emt 0:00:27]} 15. Qxc4+ {[%emt 0:00:00][%mdl 64] [#] Pin, Double Attack} Qf7 {[%emt 0:00:01]} 16. Qxf7+ {[%emt 0:00:05]} Kxf7 {[%emt 0:00:00]} 17. dxc5 {[%emt 0:00:12]} Nc2 {[%emt 0:00:01] [#]} 18. Na3 $1 {[%emt 0:00:05]} Nxa1 {[%emt 0:00:02]} 19. Be3 {[%emt 0:00:01]} Nb3 {[%emt 0:00:11]} (19... f4 $142) 20. axb3 {[%emt 0:00:02]} Rad8 {[%emt 0:00:01]} 21. Nc4 {[%emt 0:00:11]} Rd3 $2 {[%emt 0:00:02]} (21... Kg8 22. g3 Rd3) 22. Nfe5+ {[%emt 0:00:04] Black did not feel at home in the position after the opening.  Weighted Error Value: White=0.03 (flawless) /Black=0.64} 1-0

[Event "Queens Festival Final Team 2022"]
[Site "Tornelo"]
[Date "2022.06.26"]
[Round "4.6"]
[White "Bucci, Andrea Vidigal"]
[Black "Perez, Dalila"]
[Result "0-1"]
[ECO "C01"]
[WhiteElo "1769"]
[BlackElo "1799"]
[Annotator "NA"]
[PlyCount "54"]
[EventDate "2022.06.24"]
[EventType "team-tourn"]
[EventCountry "NET"]
[SourceTitle "playchess.com"]
[Source "ChessBase"]
[SourceQuality "1"]
[WhiteTeam "Brazil"]
[BlackTeam "Paraguay"]
[WhiteTeamCountry "BRA"]
[BlackTeamCountry "PAR"]
[TimeControl "180+2"]

1. e4 {[%emt 0:00:02]} e6 {[%emt 0:00:04]} 2. d4 {[%emt 0:00:02]} d5 {[%emt 0:00:01]} 3. exd5 {[%emt 0:00:02]} exd5 {[%emt 0:00:02]} 4. Bd3 {[%emt 0:00:01]} Nc6 {[%emt 0:00:01]} 5. c3 {[%emt 0:00:01]} Bd6 {[%emt 0:00:05]} 6. Qf3 {[%emt 0:00:03]} Nge7 {[%emt 0:00:05]} 7. Ne2 {[%emt 0:00:04]} Bg4 {[%emt 0:00:02]} 8. Qxg4 {[%emt 0:00:03]} h5 {[%emt 0:00:03]} 9. Qf3 {[%emt 0:00:07]} g6 {[%emt 0:00:04]} 10. Bg5 {[%emt 0:00:04]} Qd7 {[%emt 0:00:03]} 11. Nd2 {[%emt 0:00:06]} O-O-O {[%emt 0:00:02]} 12. O-O {[%emt 0:00:26]} Rdg8 {[%emt 0:00:24]} 13. Nb3 {[%emt 0:00:25]} h4 {[%emt 0:00:02]} 14. Bf4 {[%emt 0:00:15]} g5 {[%emt 0:00:15]} 15. Bxd6 {[%emt 0:00:14]} Qxd6 {[%emt 0:00:00]} 16. Nc5 {[%emt 0:00:06]} Nd8 {[%emt 0:00:11]} 17. Bf5+ {[%emt 0:00:07]} Ne6 {[%emt 0:00:26]} 18. Qg4 {[%emt 0:00:23]} Nxf5 {[%emt 0:00:23]} 19. Qxf5 {[%emt 0:00:04]} g4 {[%emt 0:00:01]} 20. Qxf7 {[%emt 0:00:05]} Nxc5 {[%emt 0:00:11]} 21. dxc5 {[%emt 0:00:07]} Qxc5 {[%emt 0:00:01]} 22. Nd4 {[%emt 0:00:12]} g3 {[%emt 0:00:02]} 23. fxg3 {[%emt 0:00:14]} hxg3 {[%emt 0:00:04]} 24. h3 {[%emt 0:00:10]} Kb8 {[%emt 0:00:22]} 25. Rf5 {[%emt 0:00:18]} Qb6 {[%emt 0:00:02]} 26. Qxd5 {[%emt 0:00:04]} Qxb2 {[%emt 0:00:03]} 27. Raf1 {[%emt 0:00:06]} Rd8 {[%emt 0:00:11]} 0-1

[Event "Queens Festival Final Team 2022"]
[Site "Tornelo"]
[Date "2022.06.26"]
[Round "4.6"]
[White "Mayeregger Gonzalez, Renata"]
[Black "Gomes, Maria Eduarda Papini"]
[Result "1-0"]
[ECO "B01"]
[WhiteElo "1461"]
[BlackElo "1618"]
[Annotator "NA RC"]
[PlyCount "133"]
[EventDate "2022.06.24"]
[EventType "team-tourn"]
[EventCountry "NET"]
[SourceTitle "playchess.com"]
[Source "ChessBase"]
[SourceQuality "1"]
[WhiteTeam "Paraguay"]
[BlackTeam "Brazil"]
[WhiteTeamCountry "PAR"]
[BlackTeamCountry "BRA"]
[TimeControl "180+2"]

1. e4 {[%emt 0:00:02]} d5 {[%emt 0:00:04]} 2. exd5 {[%emt 0:00:02]} Qxd5 {[%emt 0:00:01]} 3. Nc3 {[%emt 0:00:04]} Qa5 {[%emt 0:00:01]} 4. d4 {[%emt 0:00:02]} c6 {[%emt 0:00:01]} 5. Bd2 {[%emt 0:00:01]} Qc7 {[%emt 0:00:03]} 6. Nf3 {[%emt 0:00:02]} Nf6 {[%emt 0:00:01]} 7. h3 {[%emt 0:00:01]} Bf5 {[%emt 0:00:01]} 8. Bc4 {[%emt 0:00:02]} e6 {[%emt 0:00:02]} 9. O-O {[%emt 0:00:02]} Bd6 {[%emt 0:00:02]} 10. Bg5 {[%emt 0:00:04]} Nbd7 {[%emt 0:00:02]} 11. Re1 {[%emt 0:00:04]} h6 {[%emt 0:00:09]} 12. Be3 {[%emt 0:00:04]} O-O {[%emt 0:00:03]} 13. Qd2 {[%emt 0:00:02]} Nb6 {[%emt 0:00:03]} 14. Bd3 {[%emt 0:00:02]} Bxd3 {[%emt 0:00:04]} 15. Qxd3 {[%emt 0:00:02]} Nbd5 {[%emt 0:00:02]} 16. Nxd5 {[%emt 0:00:02]} Nxd5 {[%emt 0:00:01]} 17. Bd2 {[%emt 0:00:05]} Rfd8 {[%emt 0:00:10]} 18. c3 {[%emt 0:00:03]} c5 {[%emt 0:00:01]} 19. Rac1 {[%emt 0:00:05]} cxd4 {[%emt 0:00:02]} 20. Nxd4 {[%emt 0:00:03]} a6 {[%emt 0:00:07]} 21. Qe4 {[%emt 0:00:14]} Nb6 {[%emt 0:00:16]} 22. Qg4 {[%emt 0:00:07]} Kh8 {[%emt 0:00:05]} 23. Qh5 {[%emt 0:00:08]} Bf4 {[%emt 0:00:21]} 24. Bxf4 {[%emt 0:00:11]} Qxf4 {[%emt 0:00:00]} 25. f3 {[%emt 0:00:42]} Rd5 {[%emt 0:00:22]} 26. Qg4 {[%emt 0:00:08]} Qxg4 {[%emt 0:00:01]} 27. hxg4 {[%emt 0:00:02]} Nc4 {[%emt 0:00:02]} 28. b3 {[%emt 0:00:05]} Nb6 {[%emt 0:00:03]} 29. f4 {[%emt 0:00:08]} Rad8 {[%emt 0:00:06]} 30. Rf1 {[%emt 0:00:11]} Ra5 {[%emt 0:00:06]} 31. a4 {[%emt 0:00:05]} Rad5 {[%emt 0:00:05]} 32. Rce1 {[%emt 0:00:05]} Nd7 {[%emt 0:00:09]} 33. f5 {[%emt 0:00:16]} e5 {[%emt 0:00:13]} 34. Nf3 {[%emt 0:00:02]} f6 {[%emt 0:00:07]} 35. Rd1 {[%emt 0:00:05]} Nc5 {[%emt 0:00:04]} 36. Rxd5 {[%emt 0:00:09]} Rxd5 {[%emt 0:00:00]} 37. Rb1 {[%emt 0:00:14]} Rd3 {[%emt 0:00:02]} 38. Nh4 {[%emt 0:00:22]} Rxc3 {[%emt 0:00:04]} 39. Ng6+ {[%emt 0:00:01]} Kg8 {[%emt 0:00:05]} 40. Rd1 {[%emt 0:00:02]} Rd3 {[%emt 0:00:07]} 41. Rc1 {[%emt 0:00:01]} b6 {[%emt 0:00:06]} 42. b4 {[%emt 0:00:02]} Rd5 {[%emt 0:00:20]} 43. Ne7+ {[%emt 0:00:03]} Kf8 {[%emt 0:00:02]} 44. Nxd5 {[%emt 0:00:01]} Nd3 {[%emt 0:00:02]} 45. Rc8+ {[%emt 0:00:02]} Kf7 {[%emt 0:00:01]} 46. Rc7+ {[%emt 0:00:02]} Ke8 {[%emt 0:00:03]} 47. Nxb6 {[%emt 0:00:01]} Nxb4 {[%emt 0:00:03]} 48. Rxg7 {[%emt 0:00:02]} Nc6 {[%emt 0:00:06]} 49. Rg6 {[%emt 0:00:02]} Ke7 {[%emt 0:00:03]} 50. Rxh6 {[%emt 0:00:01]} Nd4 {[%emt 0:00:02]} 51. Rh7+ {[%emt 0:00:02]} Kd6 {[%emt 0:00:02]} 52. Ra7 {[%emt 0:00:05]} Kc5 {[%emt 0:00:09]} 53. Nc8 {[%emt 0:00:02]} Ne2+ {[%emt 0:00:08]} 54. Kh2 {[%emt 0:00:02]} Nf4 {[%emt 0:00:03]} 55. Rxa6 {[%emt 0:00:02]} Nd5 {[%emt 0:00:04]} 56. Na7 {[%emt 0:00:04]} Kb4 {[%emt 0:00:05]} 57. Rd6 {[%emt 0:00:02]} Ne3 {[%emt 0:00:03]} 58. a5 {[%emt 0:00:02]} Nxg4+ {[%emt 0:00:02]} 59. Kh3 {[%emt 0:00:02]} Ne3 {[%emt 0:00:04]} 60. Rxf6 {[%emt 0:00:03]} Kxa5 {[%emt 0:00:02]} 61. Re6 {[%emt 0:00:02]} Nc4 {[%emt 0:00:02]} 62. f6 {[%emt 0:00:02]} Nb6 {[%emt 0:00:08]} 63. Rxb6 {[%emt 0:00:03]} Kxb6 {[%emt 0:00:02]} 64. f7 {[%emt 0:00:00]} Kxa7 {[%emt 0:00:01]} 65. f8=Q {[%emt 0:00:03]} Kb6 {[%emt 0:00:00]} 66. Qe7 {[%emt 0:00:01]} Kc6 {[%emt 0:00:02]} 67. Qxe5 {[%emt 0:00:00]} 1-0